[Event "Championnat d'Europe Rapide"]
[Date "2024.12.08"]
[White "Georgiev, Kiril"]
[Black "Fedoseev, Vladimir"]
[WhiteElo "2537"]
[BlackElo "2709"]
[Round "9.1"]
[Result "0-1"]
[TimeControl "900+10"]

1. d4 {[%emt 00:00:31] [%clk 00:14:48]} d5 {[%emt 00:00:23] [%clk 00:14:58]} 2.
c4 {[%emt 00:00:09] [%clk 00:14:50]} dxc4 {[%emt 00:00:13] [%clk 00:14:55]} 3.
e3 {[%emt 00:00:17] [%clk 00:14:42]} Nf6 {[%emt 00:00:06] [%clk 00:15:00]} 4.
Bxc4 {[%emt 00:00:04] [%clk 00:14:48]} e6 {[%emt 00:00:02] [%clk 00:15:08]} 5.
Nf3 {[%emt 00:00:11] [%clk 00:14:48]} Be7 {[%emt 00:00:01] [%clk 00:15:16]} 6.
O-O {[%emt 00:00:21] [%clk 00:14:38]} a6 {[%emt 00:00:13] [%clk 00:15:13]} 7.
Qe2 {[%emt 00:02:11] [%clk 00:12:36]} Nbd7 {[%emt 00:00:31] [%clk 00:14:53]} 8.
a4 {[%emt 00:00:26] [%clk 00:12:20]} c5 {[%emt 00:00:30] [%clk 00:14:33]} 9. a5
{[%emt 00:00:51] [%clk 00:11:39]} cxd4 {[%emt 00:02:17] [%clk 00:12:26]} 10.
exd4 {[%emt 00:01:45] [%clk 00:10:03]} Nd5 {[%emt 00:02:50] [%clk 00:09:47]} 11.
Bxd5 {[%emt 00:00:47] [%clk 00:09:26]} exd5 {[%emt 00:00:01] [%clk 00:09:56]}
12. Re1 {[%emt 00:00:15] [%clk 00:09:21]} Nf6 {[%emt 00:00:03] [%clk 00:10:03]}
13. Nc3 {[%emt 00:01:15] [%clk 00:08:15]} h6 {[%emt 00:01:12] [%clk 00:09:01]}
14. Na4 {[%emt 00:00:54] [%clk 00:07:31]} Be6 {[%emt 00:01:19] [%clk 00:07:53]}
15. Nb6 {[%emt 00:02:02] [%clk 00:05:38]} Rb8 {[%emt 00:00:39] [%clk 00:07:25]}
16. Bf4 {[%emt 00:01:52] [%clk 00:03:56]} Bd6 {[%emt 00:00:01] [%clk 00:07:34]}
17. Bxd6 {[%emt 00:00:07] [%clk 00:03:58]} Qxd6 {[%emt 00:00:01] [%clk
00:07:43]} 18. Ne5 {[%emt 00:00:41] [%clk 00:03:26]} O-O {[%emt 00:00:10] [%clk
00:07:44]} 19. f3 {[%emt 00:00:04] [%clk 00:03:32]} Rfe8 {[%emt 00:01:15] [%clk
00:06:39]} 20. Qd2 {[%emt 00:00:02] [%clk 00:03:40]} Nd7 {[%emt 00:01:18] [%clk
00:05:31]} 21. Nexd7 {[%emt 00:00:29] [%clk 00:03:20]} Bxd7 {[%emt 00:00:02]
[%clk 00:05:40]} 22. Re5 {[%emt 00:00:27] [%clk 00:03:00]} Bc6 {[%emt 00:01:59]
[%clk 00:03:54]} 23. Rae1 {[%emt 00:00:11] [%clk 00:02:59]} Rxe5 {[%emt
00:00:05] [%clk 00:03:59]} 24. Rxe5 {[%emt 00:00:26] [%clk 00:02:43]} f6 {[%emt
00:00:02] [%clk 00:04:07]} 25. Re1 {[%emt 00:00:06] [%clk 00:02:46]} Kf7 {[%emt
00:00:03] [%clk 00:04:15]} 26. g3 {[%emt 00:00:46] [%clk 00:02:10]} h5 {[%emt
00:00:35] [%clk 00:03:51]} 27. Kf2 {[%emt 00:00:29] [%clk 00:01:50]} h4 {[%emt
00:00:34] [%clk 00:03:27]} 28. Qf4 {[%emt 00:00:39] [%clk 00:01:20]} Qxf4 {[%emt
00:00:33] [%clk 00:03:05]} 29. gxf4 {[%emt 00:00:01] [%clk 00:01:28]} Rh8 {[%emt
00:00:18] [%clk 00:02:58]} 30. b4 {[%emt 00:00:46] [%clk 00:00:52]} Rg8 {[%emt
00:00:27] [%clk 00:02:41]} 31. Re3 {[%emt 00:00:11] [%clk 00:00:52]} Kg6 {[%emt
00:00:39] [%clk 00:02:11]} 32. Re7 {[%emt 00:00:09] [%clk 00:00:53]} Kf5 {[%emt
00:00:03] [%clk 00:02:18]} 33. Ke3 {[%emt 00:00:06] [%clk 00:00:56]} h3 {[%emt
00:00:03] [%clk 00:02:26]} 34. Nd7 {[%emt 00:00:23] [%clk 00:00:44]} g5 {[%emt
00:00:36] [%clk 00:01:59]} 35. fxg5 {[%emt 00:00:06] [%clk 00:00:48]} Rxg5
{[%emt 00:00:01] [%clk 00:02:08]} 36. Nf8 {[%emt 00:00:13] [%clk 00:00:41]} Rg8
{[%emt 00:00:37] [%clk 00:01:45]} 37. Ne6 {[%emt 00:00:26] [%clk 00:00:25]} Rg1
{[%emt 00:00:03] [%clk 00:01:52]} 38. Ng7+ {[%emt 00:00:11] [%clk 00:00:24]} Kg6
{[%emt 00:00:16] [%clk 00:01:46]} 39. Ne6 {[%emt 00:00:02] [%clk 00:00:31]} Rb1
{[%emt 00:00:55] [%clk 00:01:01]} 40. Kf4 {[%emt 00:00:09] [%clk 00:00:32]} f5
{[%emt 00:00:02] [%clk 00:01:10]} 41. Ke5 {[%emt 00:00:05] [%clk 00:00:37]} Re1+
{[%emt 00:00:04] [%clk 00:01:15]} 42. Kd6 {[%emt 00:00:28] [%clk 00:00:20]} Kf6
{[%emt 00:00:01] [%clk 00:01:24]} 43. f4 {[%emt 00:00:15] [%clk 00:00:15]} Re4
{[%emt 00:00:05] [%clk 00:01:28]} 0-1

[Site "Europe Echecs"]

[Event "Championnat d'Europe Rapide"]
[Date "2024.12.08"]
[White "Jobava, Baadur"]
[Black "Safarli, Eltaj"]
[WhiteElo "2578"]
[BlackElo "2610"]
[Round "9.2"]
[Result "1/2-1/2"]
[TimeControl "900+10"]

1. d4 {[%emt 00:00:07] [%clk 00:15:12]} Nf6 {[%emt 00:00:06] [%clk 00:15:15]} 2.
Nc3 {[%emt 00:00:02] [%clk 00:15:20]} d5 {[%emt 00:00:03] [%clk 00:15:22]} 3.
Bf4 {[%emt 00:00:01] [%clk 00:15:29]} a6 {[%emt 00:00:21] [%clk 00:15:12]} 4. e3
{[%emt 00:00:01] [%clk 00:15:37]} e6 {[%emt 00:00:06] [%clk 00:15:17]} 5. h4
{[%emt 00:00:03] [%clk 00:15:43]} c5 {[%emt 00:00:35] [%clk 00:14:52]} 6. g4
{[%emt 00:00:04] [%clk 00:15:48]} cxd4 {[%emt 00:00:23] [%clk 00:14:39]} 7. exd4
{[%emt 00:00:02] [%clk 00:15:56]} Bb4 {[%emt 00:00:02] [%clk 00:14:47]} 8. Bd3
{[%emt 00:10:21] [%clk 00:05:45]} Nc6 {[%emt 00:00:42] [%clk 00:14:16]} 9. g5
{[%emt 00:00:11] [%clk 00:05:44]} Ne4 {[%emt 00:00:24] [%clk 00:14:02]} 10. Nge2
{[%emt 00:01:03] [%clk 00:04:50]} O-O {[%emt 00:01:08] [%clk 00:13:04]} 11. f3
{[%emt 00:00:49] [%clk 00:04:12]} Nxc3 {[%emt 00:00:08] [%clk 00:13:05]} 12.
bxc3 {[%emt 00:00:02] [%clk 00:04:20]} Ba5 {[%emt 00:00:02] [%clk 00:13:13]} 13.
O-O {[%emt 00:01:49] [%clk 00:02:41]} Re8 {[%emt 00:00:28] [%clk 00:12:55]} 14.
Qd2 {[%emt 00:00:46] [%clk 00:02:06]} e5 {[%emt 00:00:43] [%clk 00:12:22]} 15.
dxe5 {[%emt 00:00:02] [%clk 00:02:13]} Bh3 {[%emt 00:01:47] [%clk 00:10:46]} 16.
Rfe1 {[%emt 00:00:18] [%clk 00:02:05]} Rc8 {[%emt 00:01:07] [%clk 00:09:48]} 17.
Kh2 {[%emt 00:00:22] [%clk 00:01:53]} Bd7 {[%emt 00:00:02] [%clk 00:09:57]} 18.
Ng3 {[%emt 00:00:29] [%clk 00:01:34]} Ne7 {[%emt 00:00:29] [%clk 00:09:37]} 19.
e6 {[%emt 00:01:03] [%clk 00:00:41]} Bxe6 {[%emt 00:00:30] [%clk 00:09:17]} 20.
Be5 {[%emt 00:00:06] [%clk 00:00:46]} Ng6 {[%emt 00:00:29] [%clk 00:08:57]} 21.
Bxg6 {[%emt 00:00:04] [%clk 00:00:52]} hxg6 {[%emt 00:00:04] [%clk 00:09:03]}
22. Re3 {[%emt 00:00:17] [%clk 00:00:45]} Rc4 {[%emt 00:00:44] [%clk 00:08:29]}
23. f4 {[%emt 00:00:02] [%clk 00:00:53]} b5 {[%emt 00:01:56] [%clk 00:06:43]}
24. Rae1 {[%emt 00:00:11] [%clk 00:00:52]} d4 {[%emt 00:01:42] [%clk 00:05:12]}
25. Bxd4 {[%emt 00:00:16] [%clk 00:00:45]} Rxd4 {[%emt 00:00:03] [%clk
00:05:19]} 26. Qxd4 {[%emt 00:00:02] [%clk 00:00:53]} Qxd4 {[%emt 00:00:02]
[%clk 00:05:28]} 27. cxd4 {[%emt 00:00:01] [%clk 00:01:02]} Bxe1 {[%emt
00:00:01] [%clk 00:05:37]} 28. Rxe1 {[%emt 00:00:02] [%clk 00:01:10]} Rc8 {[%clk
00:05:46]} 29. Re2 {[%emt 00:00:48] [%clk 00:00:33]} Bxa2 {[%emt 00:00:32] [%clk
00:05:24]} 30. Ne4 {[%emt 00:00:02] [%clk 00:00:40]} a5 {[%emt 00:01:38] [%clk
00:03:57]} 31. Nd6 {[%emt 00:00:14] [%clk 00:00:35]} Rd8 {[%emt 00:01:35] [%clk
00:02:33]} 32. Nxb5 {[%emt 00:00:04] [%clk 00:00:41]} Bc4 {[%emt 00:00:01] [%clk
00:02:41]} 33. Re5 {[%emt 00:00:01] [%clk 00:00:50]} f6 {[%emt 00:00:42] [%clk
00:02:10]} 34. Rc5 {[%emt 00:00:09] [%clk 00:00:51]} Bxb5 {[%emt 00:00:02] [%clk
00:02:18]} 35. Rxb5 {[%emt 00:00:01] [%clk 00:01:00]} Rxd4 {[%emt 00:00:01]
[%clk 00:02:27]} 36. gxf6 {[%emt 00:00:15] [%clk 00:00:55]} gxf6 {[%emt
00:00:01] [%clk 00:02:35]} 37. h5 {[%emt 00:00:44] [%clk 00:00:22]} Rxf4 {[%emt
00:00:33] [%clk 00:02:12]} 38. hxg6 {[%emt 00:00:05] [%clk 00:00:27]} a4 {[%emt
00:00:03] [%clk 00:02:18]} 39. Rb7 {[%emt 00:00:03] [%clk 00:00:35]} Rf2+ {[%emt
00:00:51] [%clk 00:01:37]} 40. Kg3 {[%emt 00:00:02] [%clk 00:00:42]} Rxc2 {[%emt
00:00:01] [%clk 00:01:46]} 41. Ra7 {[%emt 00:00:09] [%clk 00:00:44]} Ra2 {[%emt
00:00:36] [%clk 00:01:20]} 42. Kf4 {[%emt 00:00:27] [%clk 00:00:27]} a3 {[%emt
00:00:02] [%clk 00:01:28]} 43. Kf5 {[%emt 00:00:04] [%clk 00:00:33]} Rf2+ {[%emt
00:00:02] [%clk 00:01:36]} 44. Kg4 {[%emt 00:00:15] [%clk 00:00:27]} a2 {[%emt
00:01:07] [%clk 00:00:40]} 45. Kg3 {[%emt 00:00:02] [%clk 00:00:34]} 1/2-1/2

[Site "Europe Echecs"]

[Event "Championnat d'Europe Rapide"]
[Date "2024.12.08"]
[White "Van Foreest, Jorden"]
[Black "Dardha, Daniel"]
[WhiteElo "2677"]
[BlackElo "2639"]
[Round "9.3"]
[Result "0-1"]
[TimeControl "900+10"]

1. e4 {[%emt 00:00:01] [%clk 00:15:17]} e5 {[%emt 00:00:09] [%clk 00:15:11]} 2.
Nf3 {[%emt 00:00:07] [%clk 00:15:20]} Nc6 {[%emt 00:00:02] [%clk 00:15:19]} 3.
Bc4 {[%emt 00:00:07] [%clk 00:15:23]} Bc5 {[%emt 00:00:04] [%clk 00:15:25]} 4.
O-O {[%emt 00:00:14] [%clk 00:15:19]} Nf6 {[%emt 00:00:02] [%clk 00:15:32]} 5.
d3 {[%emt 00:00:03] [%clk 00:15:26]} d6 {[%emt 00:00:06] [%clk 00:15:36]} 6. c3
{[%emt 00:00:17] [%clk 00:15:19]} a5 {[%emt 00:00:04] [%clk 00:15:43]} 7. Re1
{[%emt 00:00:16] [%clk 00:15:12]} Ba7 {[%emt 00:00:03] [%clk 00:15:50]} 8. Nbd2
{[%emt 00:00:18] [%clk 00:15:04]} O-O {[%emt 00:00:14] [%clk 00:15:47]} 9. h3
{[%emt 00:00:04] [%clk 00:15:10]} Be6 {[%emt 00:00:11] [%clk 00:15:45]} 10. Bb5
{[%emt 00:00:19] [%clk 00:15:01]} Ne7 {[%emt 00:00:03] [%clk 00:15:53]} 11. d4
{[%emt 00:01:01] [%clk 00:14:09]} Ng6 {[%emt 00:00:04] [%clk 00:16:00]} 12. Nf1
{[%emt 00:00:23] [%clk 00:13:56]} exd4 {[%emt 00:01:09] [%clk 00:15:01]} 13.
cxd4 {[%emt 00:01:57] [%clk 00:12:09]} d5 {[%emt 00:00:02] [%clk 00:15:09]} 14.
e5 {[%emt 00:00:01] [%clk 00:12:18]} Ne4 {[%emt 00:00:02] [%clk 00:15:17]} 15.
Bd3 {[%emt 00:00:31] [%clk 00:11:57]} f6 {[%emt 00:01:22] [%clk 00:14:06]} 16.
Be3 {[%emt 00:01:24] [%clk 00:10:43]} f5 {[%emt 00:02:29] [%clk 00:11:47]} 17.
Qe2 {[%emt 00:03:48] [%clk 00:07:05]} Kh8 {[%emt 00:00:43] [%clk 00:11:14]} 18.
Rad1 {[%emt 00:00:07] [%clk 00:07:08]} Qd7 {[%emt 00:01:47] [%clk 00:09:37]} 19.
Bd2 {[%emt 00:00:33] [%clk 00:06:44]} Bb6 {[%emt 00:00:40] [%clk 00:09:08]} 20.
Bb1 {[%emt 00:02:04] [%clk 00:04:50]} Rae8 {[%emt 00:00:35] [%clk 00:08:43]} 21.
Bc1 {[%emt 00:00:07] [%clk 00:04:53]} Qe7 {[%emt 00:01:07] [%clk 00:07:46]} 22.
a3 {[%emt 00:00:36] [%clk 00:04:27]} c6 {[%emt 00:02:00] [%clk 00:05:56]} 23.
Qe3 {[%emt 00:01:09] [%clk 00:03:27]} a4 {[%emt 00:00:41] [%clk 00:05:25]} 24.
Bc2 {[%emt 00:00:29] [%clk 00:03:08]} Ba5 {[%emt 00:00:32] [%clk 00:05:05]} 25.
Bd2 {[%emt 00:00:23] [%clk 00:02:54]} Nxd2 {[%emt 00:01:01] [%clk 00:04:14]} 26.
N1xd2 {[%emt 00:00:01] [%clk 00:03:02]} b5 {[%emt 00:00:16] [%clk 00:04:08]} 27.
Rc1 {[%emt 00:00:03] [%clk 00:03:10]} Rc8 {[%emt 00:00:56] [%clk 00:03:22]} 28.
Bd3 {[%emt 00:00:23] [%clk 00:02:56]} Bb6 {[%emt 00:00:18] [%clk 00:03:15]} 29.
b4 {[%emt 00:00:11] [%clk 00:02:55]} axb3 {[%emt 00:00:35] [%clk 00:02:51]} 30.
Nxb3 {[%emt 00:00:01] [%clk 00:03:03]} Qxa3 {[%emt 00:00:24] [%clk 00:02:36]}
31. Nc5 {[%emt 00:00:01] [%clk 00:03:12]} Bxc5 {[%emt 00:00:53] [%clk 00:01:54]}
32. Rxc5 {[%emt 00:00:22] [%clk 00:02:59]} h6 {[%emt 00:00:09] [%clk 00:01:55]}
33. Bc2 {[%emt 00:00:38] [%clk 00:02:31]} Qxe3 {[%emt 00:00:19] [%clk 00:01:47]}
34. fxe3 {[%emt 00:00:01] [%clk 00:02:39]} Ne7 {[%emt 00:00:06] [%clk 00:01:51]}
35. Bb3 {[%emt 00:01:06] [%clk 00:01:44]} Ra8 {[%emt 00:00:09] [%clk 00:01:52]}
36. g3 {[%emt 00:00:12] [%clk 00:01:42]} Ra3 {[%emt 00:00:12] [%clk 00:01:50]}
37. Rb1 {[%emt 00:00:01] [%clk 00:01:51]} Rfa8 {[%emt 00:00:08] [%clk 00:01:52]}
38. Ne1 {[%emt 00:00:01] [%clk 00:02:00]} Ra1 {[%emt 00:00:47] [%clk 00:01:14]}
39. Rcc1 {[%emt 00:00:16] [%clk 00:01:54]} Rxb1 {[%emt 00:00:04] [%clk
00:01:20]} 40. Rxb1 {[%clk 00:02:04]} Kg8 {[%emt 00:00:36] [%clk 00:00:54]} 41.
Nd3 {[%emt 00:00:02] [%clk 00:02:12]} Kf7 {[%emt 00:00:28] [%clk 00:00:36]} 42.
Kf2 {[%emt 00:00:01] [%clk 00:02:20]} Ra3 {[%emt 00:00:04] [%clk 00:00:42]} 43.
Ke2 {[%emt 00:00:12] [%clk 00:02:18]} g5 {[%emt 00:00:02] [%clk 00:00:51]} 44.
Kd2 {[%emt 00:00:46] [%clk 00:01:42]} f4 {[%emt 00:00:12] [%clk 00:00:49]} 45.
exf4 {[%emt 00:00:08] [%clk 00:01:44]} Bxh3 {[%emt 00:00:02] [%clk 00:00:57]}
46. Nb4 {[%emt 00:01:21] [%clk 00:00:33]} Bd7 {[%emt 00:00:26] [%clk 00:00:41]}
47. fxg5 {[%emt 00:00:03] [%clk 00:00:39]} hxg5 {[%emt 00:00:01] [%clk
00:00:49]} 48. Kc3 {[%emt 00:00:08] [%clk 00:00:41]} Nf5 {[%emt 00:00:42]} 49.
Rh1 {[%clk 00:00:19]} Kg7 {[%emt 00:00:37] [%clk 00:00:24]} 50. Rh5 {[%emt
00:00:14] [%clk 00:00:13]} Kg6 {[%emt 00:00:16] [%clk 00:00:18]} 51. Rh8 {[%emt
00:00:01] [%clk 00:00:22]} Nxd4 {[%emt 00:00:06] [%clk 00:00:22]} 52. Kxd4
{[%emt 00:00:06] [%clk 00:00:27]} Rxb3 {[%emt 00:00:01] [%clk 00:00:31]} 53. Kc5
{[%emt 00:00:15] [%clk 00:00:22]} d4 {[%emt 00:00:14] [%clk 00:00:27]} 54. Rd8
{[%emt 00:00:02] [%clk 00:00:30]} Rc3+ {[%clk 00:00:36]} 55. Kd6 {[%emt
00:00:06] [%clk 00:00:34]} Bg4 {[%emt 00:00:24] [%clk 00:00:22]} 56. Nxc6 {[%emt
00:00:27] [%clk 00:00:17]} d3 {[%emt 00:00:07] [%clk 00:00:26]} 57. Ne7 {[%emt
00:00:12] [%clk 00:00:14]} Kf7 {[%emt 00:00:02] [%clk 00:00:33]} 58. Nd5 {[%emt
00:00:01] [%clk 00:00:23]} Rc8 {[%emt 00:00:12] [%clk 00:00:32]} 59. Rxc8 {[%emt
00:00:20] [%clk 00:00:13]} Bxc8 {[%emt 00:00:02] [%clk 00:00:40]} 60. Ne3 {[%emt
00:00:12] [%clk 00:00:11]} d2 {[%emt 00:00:02] [%clk 00:00:48]} 0-1

[Site "Europe Echecs"]

[Event "Championnat d'Europe Rapide"]
[Date "2024.12.08"]
[White "Korobov, Anton"]
[Black "Grigoriants, Sergey"]
[WhiteElo "2629"]
[BlackElo "2542"]
[Round "9.4"]
[Result "1-0"]
[TimeControl "900+10"]

1. c4 {[%emt 00:00:02] [%clk 00:15:17]} Nf6 {[%emt 00:00:21] [%clk 00:15:00]} 2.
Nc3 {[%emt 00:00:06] [%clk 00:15:21]} e5 {[%emt 00:00:08] [%clk 00:15:02]} 3.
Nf3 {[%emt 00:00:04] [%clk 00:15:27]} Nc6 {[%emt 00:00:04] [%clk 00:15:08]} 4.
g3 {[%emt 00:00:04] [%clk 00:15:33]} Bb4 {[%emt 00:01:21] [%clk 00:13:57]} 5.
Bg2 {[%emt 00:00:02] [%clk 00:15:41]} O-O {[%emt 00:00:03] [%clk 00:14:04]} 6.
O-O {[%emt 00:00:06] [%clk 00:15:45]} Bxc3 {[%emt 00:00:32] [%clk 00:13:43]} 7.
bxc3 {[%emt 00:00:02] [%clk 00:15:53]} Re8 {[%emt 00:00:03] [%clk 00:13:50]} 8.
Ne1 {[%emt 00:01:07] [%clk 00:14:55]} e4 {[%emt 00:01:23] [%clk 00:12:38]} 9. f3
{[%emt 00:00:01] [%clk 00:15:03]} d5 {[%emt 00:03:54] [%clk 00:08:55]} 10. cxd5
{[%emt 00:00:05] [%clk 00:15:08]} Qxd5 {[%emt 00:00:01] [%clk 00:09:04]} 11.
fxe4 {[%emt 00:01:09] [%clk 00:14:08]} Nxe4 {[%emt 00:00:03] [%clk 00:09:11]}
12. Qb3 {[%emt 00:01:18] [%clk 00:13:00]} Qxb3 {[%emt 00:01:02] [%clk 00:08:19]}
13. axb3 {[%emt 00:00:02] [%clk 00:13:08]} Nc5 {[%emt 00:00:01] [%clk 00:08:28]}
14. Ra3 {[%emt 00:01:41] [%clk 00:11:36]} Be6 {[%emt 00:02:16] [%clk 00:06:23]}
15. b4 {[%emt 00:01:12] [%clk 00:10:34]} Nb3 {[%emt 00:00:03] [%clk 00:06:30]}
16. Nd3 {[%emt 00:02:06] [%clk 00:08:38]} Rad8 {[%emt 00:00:06] [%clk 00:06:35]}
17. b5 {[%emt 00:01:34] [%clk 00:07:13]} Nca5 {[%emt 00:00:17] [%clk 00:06:28]}
18. Nf4 {[%emt 00:00:48] [%clk 00:06:35]} b6 {[%emt 00:04:22] [%clk 00:02:17]}
19. d3 {[%emt 00:00:12] [%clk 00:06:33]} Bg4 {[%emt 00:00:19] [%clk 00:02:08]}
20. e4 {[%emt 00:01:09] [%clk 00:05:34]} Nxc1 {[%emt 00:00:20] [%clk 00:01:58]}
21. Rxc1 {[%emt 00:00:01] [%clk 00:05:42]} Bd7 {[%emt 00:00:32] [%clk 00:01:38]}
22. c4 {[%emt 00:00:44] [%clk 00:05:07]} c6 {[%emt 00:01:12] [%clk 00:00:36]}
23. bxc6 {[%emt 00:00:02] [%clk 00:05:15]} Bxc6 {[%emt 00:00:01] [%clk
00:00:45]} 24. Nd5 {[%emt 00:00:01] [%clk 00:05:24]} Rc8 {[%emt 00:00:28] [%clk
00:00:27]} 25. Bh3 {[%emt 00:00:17] [%clk 00:05:16]} Rb8 {[%emt 00:00:04] [%clk
00:00:33]} 26. Kf2 {[%emt 00:00:14] [%clk 00:05:12]} f6 {[%emt 00:00:01] [%clk
00:00:42]} 27. c5 {[%emt 00:00:29] [%clk 00:04:53]} Bxd5 {[%emt 00:00:38] [%clk
00:00:15]} 28. exd5 {[%emt 00:00:02] [%clk 00:05:00]} Rbd8 {[%emt 00:00:07]
[%clk 00:00:19]} 29. c6 {[%emt 00:00:20] [%clk 00:04:49]} 1-0

[Site "Europe Echecs"]

[Event "Championnat d'Europe Rapide"]
[Date "2024.12.08"]
[White "Sargissian, Gabriel"]
[Black "Kadric, Denis"]
[WhiteElo "2628"]
[BlackElo "2544"]
[Round "9.5"]
[Result "1/2-1/2"]
[TimeControl "900+10"]

1. Nf3 {[%emt 00:00:46] [%clk 00:14:34]} d6 {[%emt 00:00:02] [%clk 00:15:19]} 2.
d4 {[%emt 00:00:09] [%clk 00:14:35]} Nf6 {[%emt 00:00:02] [%clk 00:15:28]} 3. g3
{[%emt 00:00:03] [%clk 00:14:41]} Nbd7 {[%emt 00:00:36] [%clk 00:15:03]} 4. c4
{[%emt 00:00:20] [%clk 00:14:30]} e5 {[%emt 00:00:02] [%clk 00:15:11]} 5. Nc3
{[%emt 00:00:01] [%clk 00:14:38]} g6 {[%emt 00:00:01] [%clk 00:15:20]} 6. Bg2
{[%emt 00:00:03] [%clk 00:14:45]} Bg7 {[%clk 00:15:29]} 7. O-O {[%emt 00:00:04]
[%clk 00:14:52]} O-O {[%emt 00:00:02] [%clk 00:15:38]} 8. h3 {[%emt 00:00:08]
[%clk 00:14:54]} Re8 {[%emt 00:00:02] [%clk 00:15:47]} 9. e4 {[%emt 00:00:04]
[%clk 00:14:59]} b6 {[%emt 00:00:02] [%clk 00:15:56]} 10. Re1 {[%emt 00:00:40]
[%clk 00:14:28]} exd4 {[%emt 00:00:07] [%clk 00:15:59]} 11. Nxd4 {[%emt
00:00:05] [%clk 00:14:33]} Bb7 {[%emt 00:00:01] [%clk 00:16:08]} 12. Nc2 {[%emt
00:01:14] [%clk 00:13:29]} Nc5 {[%emt 00:00:53] [%clk 00:15:25]} 13. f3 {[%emt
00:00:07] [%clk 00:13:31]} c6 {[%emt 00:02:47] [%clk 00:12:49]} 14. Ne3 {[%emt
00:01:51] [%clk 00:11:50]} a5 {[%emt 00:02:08] [%clk 00:10:51]} 15. Kh2 {[%emt
00:00:33] [%clk 00:11:26]} Qc7 {[%emt 00:00:10] [%clk 00:10:52]} 16. Ng4 {[%emt
00:00:54] [%clk 00:10:42]} Nh5 {[%emt 00:01:22] [%clk 00:09:40]} 17. f4 {[%emt
00:00:04] [%clk 00:10:48]} f5 {[%emt 00:01:02] [%clk 00:08:48]} 18. exf5 {[%emt
00:00:22] [%clk 00:10:36]} Rxe1 {[%clk 00:08:57]} 19. Qxe1 {[%emt 00:00:01]
[%clk 00:10:44]} gxf5 {[%clk 00:09:06]} 20. Ne3 {[%emt 00:00:36] [%clk
00:10:18]} Qf7 {[%emt 00:00:37] [%clk 00:08:40]} 21. Qd1 {[%emt 00:00:26] [%clk
00:10:02]} Qg6 {[%emt 00:00:23] [%clk 00:08:27]} 22. Nxf5 {[%emt 00:03:40] [%clk
00:06:32]} Qxf5 {[%emt 00:00:25] [%clk 00:08:12]} 23. g4 {[%clk 00:06:41]} Qd3
{[%emt 00:01:20] [%clk 00:07:02]} 24. gxh5 {[%emt 00:00:17] [%clk 00:06:33]} Re8
{[%emt 00:00:01] [%clk 00:07:11]} 25. Qxd3 {[%emt 00:00:52] [%clk 00:05:52]}
Nxd3 {[%clk 00:07:20]} 26. Ne4 {[%emt 00:00:03] [%clk 00:05:58]} Ba8 {[%emt
00:02:03] [%clk 00:05:28]} 27. Bd2 {[%emt 00:02:13] [%clk 00:03:54]} c5 {[%emt
00:02:51] [%clk 00:02:47]} 28. Ng3 {[%emt 00:00:02] [%clk 00:04:03]} Bxg2 {[%emt
00:00:02] [%clk 00:02:56]} 29. Kxg2 {[%clk 00:04:11]} Nxb2 {[%emt 00:00:01]
[%clk 00:03:04]} 30. Rc1 {[%emt 00:00:01] [%clk 00:04:20]} Rd8 {[%emt 00:01:39]
[%clk 00:01:36]} 31. Nf5 {[%emt 00:00:46] [%clk 00:03:43]} Bf6 {[%emt 00:00:11]
[%clk 00:01:36]} 32. Ne3 {[%emt 00:02:13] [%clk 00:01:39]} Kf7 {[%emt 00:00:01]
[%clk 00:01:46]} 33. Kf3 {[%emt 00:00:40] [%clk 00:01:10]} a4 {[%emt 00:00:38]
[%clk 00:01:18]} 34. Bc3 {[%emt 00:00:47] [%clk 00:00:33]} Nd3 {[%emt 00:01:10]
[%clk 00:00:17]} 35. Bxf6 {[%emt 00:00:03] [%clk 00:00:40]} Kxf6 {[%clk
00:00:26]} 36. Rb1 {[%emt 00:00:05] [%clk 00:00:45]} Nb4 {[%emt 00:00:24] [%clk
00:00:12]} 37. a3 {[%emt 00:00:04] [%clk 00:00:51]} Nc6 {[%clk 00:00:22]} 38.
Rxb6 {[%emt 00:00:09] [%clk 00:00:51]} Nd4+ {[%clk 00:00:31]} 39. Ke4 {[%emt
00:00:06] [%clk 00:00:55]} Re8+ {[%emt 00:00:16] [%clk 00:00:26]} 40. Kd3 {[%emt
00:00:01] [%clk 00:01:03]} Ke6 {[%emt 00:00:02] [%clk 00:00:34]} 41. Nd5 {[%emt
00:00:35] [%clk 00:00:38]} Rg8 {[%emt 00:00:11] [%clk 00:00:33]} 42. Rb7 {[%emt
00:00:04] [%clk 00:00:44]} Nf5 {[%emt 00:00:07] [%clk 00:00:35]} 43. Rxh7 {[%emt
00:00:25] [%clk 00:00:30]} Rg3+ {[%emt 00:00:16] [%clk 00:00:29]} 44. Ke4 {[%emt
00:00:02] [%clk 00:00:37]} Rxa3 {[%emt 00:00:02] [%clk 00:00:38]} 45. Nc7+
{[%clk 00:00:46]} Kf6 {[%clk 00:00:47]} 46. Ne8+ {[%emt 00:00:02] [%clk
00:00:53]} Ke6 {[%emt 00:00:01] [%clk 00:00:57]} 47. Nc7+ {[%emt 00:00:09] [%clk
00:00:54]} Kf6 {[%clk 00:01:06]} 48. Ne8+ {[%emt 00:00:10] [%clk 00:00:54]} Ke6
{[%clk 00:01:16]} 49. Nc7+ {[%emt 00:00:31] [%clk 00:00:33]}

[Site "Europe Echecs"]